Cogmind - Beta 9.6 @@@ ROGUE MODE // 2020.09.02 @ 21:24:09 Player: muxecoid Result: Destroyed by 8R-AWN with 8R-AWN's Boregun Performance ------------- Evolutions (1) 500 Regions Visited (4) 800 Robots Destroyed (22) 110 Value Destroyed (525) 525 Prototype IDs (22) 440 Alien Tech Used (0) 0 Bonus (-170) -170 TOTAL SCORE: 2205 Bonus ------- Aligned with FarCom 300 Friendly Fire -470 Cogmind --------- Core Integrity 0/400 Matter 17/300 Energy 100/100 System Corruption 0% Temperature Cool (0) Movement Core (1350) Ox26 Location -9/Exiles Parts ------- > --- POWER (1) -------- (None) > --- PROPULSION (2) --- (None) > --- UTILITY (4) ------ Humpback > --- WEAPON (2) ------- (None) > --- INVENTORY (24) --- Improved Deuterium Engine Light Treads Light Treads Light Treads Improved Carbon-fiber Leg Wheel Wheel Medium Storage Unit Medium Storage Unit Large Storage Unit Large Storage Unit Large Storage Unit Large Storage Unit Large Storage Unit Core Analyzer Heavy Assault Rifle Heavy Assault Rifle Heavy Assault Rifle Autogun Autogun Grenade Launcher Rocket Launcher Power Maul Peak State ------------ > --- POWER ------------ Ion Engine > --- PROPULSION ------- Armored Huge Wheel > --- UTILITY ---------- Humpback Humpback > --- WEAPON ----------- Autogun Gauss Rifle > --- INVENTORY -------- Improved Deuterium Engine Light Treads Light Treads Light Treads Improved Carbon-fiber Leg Wheel Wheel Medium Storage Unit Medium Storage Unit Large Storage Unit Large Storage Unit Large Storage Unit Large Storage Unit Large Storage Unit Core Analyzer Small Laser Heavy Assault Rifle Heavy Assault Rifle Heavy Assault Rifle Autogun Autogun Grenade Launcher Rocket Launcher Rocket Launcher Power Maul [Rating: 23] Favorites ----------- Power Ion Engine Engine Ion Engine Propulsion Compact Wheel Wheel Compact Wheel Utility Large Storage Unit Storage Large Storage Unit Weapon Autogun Energy Gun Small Laser Ballistic Gun Autogun Launcher Rocket Launcher Build | -11 -10 -9 -9 -9 ------- Run | Scr Mat Mat Min Exi Slots Evolved 2 | . . 2 . . Power . | . . . . . Propulsion . | . . . . . Utility 2 | . . 2 . . Weapon . | . . . . . Parts Attached 28 | 6 2 6 6 8 Power 3 | 1 . . 2 . Engine 3 | 1 . . 2 . Core . | . . . . . Reactor . | . . . . . Propulsion 6 | 2 . 1 3 . Treads . | . . . . . Leg . | . . . . . Wheel 6 | 2 . 1 3 . Hover . | . . . . . Flight . | . . . . . Utility 9 | 1 2 2 . 4 Device . | . . . . . Storage 9 | 1 2 2 . 4 Processor . | . . . . . Hackware . | . . . . . Protection . | . . . . . Artifact . | . . . . . Weapon 10 | 2 . 3 1 4 Energy Gun 3 | 1 . 1 . 1 Energy Cannon . | . . . . . Ballistic Gun 6 | 1 . 2 1 2 Ballistic Cannon . | . . . . . Launcher 1 | . . . . 1 Special Weapon . | . . . . . Impact Weapon . | . . . . . Slashing Weapon . | . . . . . Piercing Weapon . | . . . . . Special Melee Weapon . | . . . . . Unidentified Prototypes . | . . . . . Parts Lost 12 | . . 3 2 7 Power 2 | . . . 1 1 Propulsion 2 | . . 1 . 1 Utility 1 | . . . . 1 Weapon 7 | . . 2 1 4 Highest Loss Streak 5 | . . 2 1 5 Average Slot Usage (%) 86 | . 88 97 91 79 Engine 11 | . 14 11 10 10 Wheel 14 | . 28 22 14 9 Storage 38 | . 17 42 44 37 Energy Gun 2 | . 14 4 . . Ballistic Gun 19 | . 14 16 22 20 Naked Turns . | . . . . . Heaviest Build 172 | 10 38 57 59 172 Greatest Support 32 | 32 32 32 32 28 Greatest Overweight (x) 6 | . 1 1 2 6 Average Overweight (x) 1 | . . 1 1 2 Largest Inventory Capacity 44 | 6 16 24 24 44 Average Capacity 24 | 5 8 23 24 28 Most Carried 27 | 4 12 22 24 27 Average Carried 20 | 1 5 18 23 23 Final Capacity 24 | 6 16 24 24 24 Final Carried 23 | 4 12 22 22 23 Class Distribution -------------------- 88% | Hauler-Mutant 11% | Mutant Dominant Class ---------------- Mutant | -10/Materials Hauler-Mutant | -9/Materials Hauler-Mutant | -9/Mines Hauler-Mutant | -9/Exiles Resources | -11 -10 -9 -9 -9 ----------- Run | Scr Mat Mat Min Exi Matter Collected 724 | 189 70 259 206 . Remotely . | . . . . . Salvage Created 595 | . 96 362 124 13 Parts 38 | . 4 25 9 . Haulers Intercepted . | . . . . . Recyclers Shooed 1 | . . 1 . . Parts Field Recycled . | . . . . . Retrieved Matter . | . . . . . Parts Self-Destructed . | . . . . . Prevented . | . . . . . Kills | -11 -10 -9 -9 -9 ------- Run | Scr Mat Mat Min Exi Combat Hostiles Destroyed 18 | . 2 8 5 3 Guns 16 | . 2 8 5 1 AOE 2 | . . . . 2 Classes Destroyed 6 | . 2 2 1 1 Operator 1 | . 1 . . . Swarmer 3 | . . . 3 . Grunt 8 | . 2 4 2 . Brawler 1 | . . 1 . . Sentry 3 | . . 3 . . Assembled 6 | . . . . 6 Best Kill Streak 4 | . 1 4 3 3 Combat Bots Only 4 | . 1 4 3 3 Max Kills in Single Turn 3 | . 1 1 1 3 Gunslinging . | . . . . . Exploded 2 | . . . . 2 Melee . | . . . . . Uniques/NPCs Destroyed . | . . . . . Combat | -11 -10 -9 -9 -9 -------- Run | Scr Mat Mat Min Exi Damage Taken 2405 | . 84 430 315 1576 Core 413 | . . 79 34 300 Absorbed by Shields . | . . . . . Core Remaining (%) 100 | 100 100 . . . Volleys Fired 123 | . 10 37 26 50 Largest 2 | . 2 2 2 2 Hottest 85 | . 60 85 46 56 Shots Fired 212 | . 20 71 52 69 Gun 209 | . 20 71 52 66 Cannon . | . . . . . Launcher 3 | . . . . 3 Special . | . . . . . Kinetic 176 | . 10 65 52 49 Thermal 29 | . 10 2 . 17 Explosive 3 | . . . . 3 Electromagnetic 4 | . . 4 . . Robot Hit Streak 13 | . 6 13 7 9 Robot Miss Streak 7 | . 2 4 7 3 Penetration Max . | . . . . . Secondary Targets 2 | . . . 2 . Max Gunslinging Chain 1 | . . . 1 . Shots Hit Robots 135 | . 13 52 24 46 Core Hits 53 | . 7 19 7 20 Critical Hits 1 | . . . 1 . Critical Kills 1 | . . . 1 . Critical Parts Destroyed . | . . . . . Melee Attacks . | . . . . . Impact . | . . . . . Slashing . | . . . . . Piercing . | . . . . . Sneak Attacks . | . . . . . Combat Hostiles . | . . . . . Follow-up Attacks . | . . . . . Damage Inflicted 2153 | . 156 622 343 1032 Guns 1797 | . 156 622 343 676 Cannons . | . . . . . Explosions 331 | . . . . 331 Melee . | . . . . . Ramming 25 | . . . . 25 Kinetic 1468 | . 55 539 343 531 Thermal 268 | . 101 22 . 145 Explosive 331 | . . . . 331 Electromagnetic 61 | . . 61 . . Impact . | . . . . . Slashing . | . . . . . Piercing . | . . . . . Highest Corruption . | . . . . . Average Corruption . | . . . . . Corruption Purged . | . . . . . Overload Shots . | . . . . . Overflow Damage . | . . . . . Projectiles . | . . . . . Explosions . | . . . . . Melee . | . . . . . Knockbacks . | . . . . . Impact . | . . . . . Kinetic . | . . . . . Secondary . | . . . . . Self-Inflicted Damage 12 | . . . . 12 Shots . | . . . . . Rammed 6 | . . . . 6 Targets Rammed 6 | . . . . 6 Kicked . | . . . . . Crushed . | . . . . . Highest Temperature 36 | . 36 31 18 13 Average Temperature 10 | . 19 8 10 4 Received Heat Transfer 343 | . 48 177 78 40 Siege Activations . | . . . . . Robots Corrupted . | . . . . . Combat Hostiles . | . . . . . Parts Fried 1 | . . 1 . . Impact Corruptions . | . . . . . Robots Melted . | . . . . . Combat Hostiles . | . . . . . Parts Melted . | . . . . . Heat Transferred 353 | . 225 50 . 78 Parts Sabotaged . | . . . . . Parts Stolen . | . . . . . Parts Stripped . | . . . . . Power Chain Reactions . | . . . . . Missiles Intercepted . | . . . . . Alert | -11 -10 -9 -9 -9 ------- Run | Scr Mat Mat Min Exi Peak Influence 293 | . 76 293 209 . Average Influence 89 | . 35 112 98 . Maximum Alert Level 1 | . . 1 1 . Low Security (%) 91 | 100 100 77 97 . Level 1 8 | . . 22 2 . Level 2 . | . . . . . Level 3 . | . . . . . Level 4 . | . . . . . Level 5 . | . . . . . High Security . | . . . . . Max Security . | . . . . . Squads Dispatched 4 | . 1 2 1 . Investigation 2 | . . 1 1 . Extermination . | . . . . . Reinforcement 2 | . 1 1 . . Assault . | . . . . . Garrison . | . . . . . Intercept . | . . . . . Construction Impeded . | . . . . . Haulers Reinforced . | . . . . . Stealth | -11 -10 -9 -9 -9 --------- Run | Scr Mat Mat Min Exi Distress Signals 2 | . 1 1 . . Communications Jammed . | . . . . . Distress Signals . | . . . . . Times Spotted 35 | . 5 16 9 5 Peak Tracking Total 8 | . 4 8 3 6 Tactical Retreats 7 | . 1 4 2 . Traps | -11 -10 -9 -9 -9 ------- Run | Scr Mat Mat Min Exi Traps Triggered 1 | . . 1 . . Indirectly . | . . . . . Trap Hack Attempts . | . . . . . Triggered . | . . . . . Disarmed . | . . . . . Reprogrammed . | . . . . . Reused . | . . . . . Traps Extracted . | . . . . . Installed . | . . . . . Triggered . | . . . . . Machines | -11 -10 -9 -9 -9 ---------- Run | Scr Mat Mat Min Exi Machines Disabled 5 | . . . 1 4 Max in Single Turn 2 | . . . 1 2 Machines Sabotaged . | . . . . . Garrisons Compromised . | . . . . . Overloaded Fab Kills . | . . . . . Fab Network Shutdowns . | . . . . . Hacking | -11 -10 -9 -9 -9 --------- Run | Scr Mat Mat Min Exi Machines Accessed 9 | . 3 2 2 2 Terminals 5 | . 3 2 . . Fabricators . | . . . . . Repair Stations . | . . . . . Recycling Units . | . . . . . Scanalyzers . | . . . . . Garrison Access . | . . . . . Total Hacks 36 | . 5 5 2 24 Successful 32 | . 2 4 2 24 Failed 4 | . 3 1 . . Catastrophic . | . . . . . Database Lockouts . | . . . . . Manual 9 | . 3 5 . 1 Terminals 10 | . 5 5 . . Fabricators . | . . . . . Repair Stations . | . . . . . Recycling Units . | . . . . . Scanalyzers . | . . . . . Garrison Access . | . . . . . Terminal Hacks 31 | . 2 3 2 24 Record 23 | . . . . 23 Robot Analysis 2 | . 1 1 . . Open Door 2 | . . . 2 . Branch Access Points 1 | . . 1 . . Recall Investigation 1 | . . 1 . . Recall Reinforcements 1 | . 1 . . . EX-Prototype ID Bank 1 | . . . . 1 Fabricator Hacks . | . . . . . Repair Station Hacks . | . . . . . Recycling Unit Hacks . | . . . . . Scanalyzer . | . . . . . Garrison Access Hacks . | . . . . . Unauthorized Hacks 1 | . . 1 . . Terminals 1 | . . 1 . . Botnet 1 | . . 1 . . Fabricators . | . . . . . Repair Stations . | . . . . . Recycling Units . | . . . . . Scanalyzers . | . . . . . Garrison Access . | . . . . . Data Cores Recovered . | . . . . . Used . | . . . . . Hacking Detections 3 | . 1 2 . . Full Trace Events . | . . . . . Feedback Events . | . . . . . Feedback Blocked . | . . . . . Robot Schematics Acquired . | . . . . . Robots Built . | . . . . . Matter . | . . . . . Time . | . . . . . Total Robot Build Rating . | . . . . . Part Schematics Acquired . | . . . . . Parts Built . | . . . . . Matter . | . . . . . Time . | . . . . . Total Part Build Rating . | . . . . . Parts Repaired . | . . . . . Time . | . . . . . Parts Recycled . | . . . . . Recycled Matter . | . . . . . Retrieved Matter . | . . . . . Retrieved Components . | . . . . . Parts Scanalyzed . | . . . . . Part Schematics Acquired . | . . . . . Parts Damaged . | . . . . . Bothacking | -11 -10 -9 -9 -9 ------------ Run | Scr Mat Mat Min Exi Used RIF Installer . | . . . . . Robots Hacked . | . . . . . Non-combat . | . . . . . Combat . | . . . . . Robot Hacks Applied . | . . . . . Relay Couplers Released . | . . . . . Robots Rewired . | . . . . . Allies Hacked . | . . . . . Hacks Repelled . | . . . . . Allies | -11 -10 -9 -9 -9 -------- Run | Scr Mat Mat Min Exi Total Allies . | . . . . . Largest Group . | . . . . . Highest-Rated Group . | . . . . . Highest-Rated Ally . | . . . . . Total Orders . | . . . . . Ally Attacks . | . . . . . Total Damage . | . . . . . Kills . | . . . . . Allies Corrupted . | . . . . . Allies Melted . | . . . . . Intel | -11 -10 -9 -9 -9 ------- Run | Scr Mat Mat Min Exi Robot Analysis Total 2 | . 1 1 . . Derelict Logs Recovered 3 | . . . 3 . Drone Launches . | . . . . . Drone Recoveries . | . . . . . Exploration | -11 -10 -9 -9 -9 ------------- Run | Scr Mat Mat Min Exi Turns Passed 2282 | 43 196 394 555 1094 Spaces Moved 1476 | 31 132 218 384 711 Core 2 | 2 . . . . Treads . | . . . . . Legs . | . . . . . Wheels 1474 | 29 132 218 384 711 Hover . | . . . . . Flight . | . . . . . Fastest Speed 50 | 50 100 110 100 110 Average Speed 115 | 96 102 110 109 122 Slowest Speed 160 | 100 110 110 120 160 Overloaded Moves . | . . . . . Propulsion Burnouts . | . . . . . Robots Hopped . | . . . . . Cave-ins Triggered . | . . . . . Exploration Rate (%) 43 | 3 32 25 68 87 Regions Visited 4 Branch Regions 2 Pre-discovered Areas 4 | . . . 3 1 Known Exits Taken 1 | . . 1 . . Unknown Exits Taken 3 | 1 1 . 1 . Scrap Searched . | . . . . . Spaces Dug . | . . . . . Terrain Destroyed 18 | . . . . 18 Melee . | . . . . . Projectile 2 | . . . . 2 AOE 16 | . . . . 16 Actions | -11 -10 -9 -9 -9 --------- Run | Scr Mat Mat Min Exi Total 1805 | 40 172 315 479 799 Wait 107 | . 20 38 49 . Move 1472 | 30 131 217 383 711 Hop . | . . . . . Pick Up 50 | 4 8 16 7 15 Fast Attach 10 | 6 1 . 1 2 Attach 12 | . . 5 5 2 Detach 2 | . . . 1 1 Swap 6 | . 1 1 . 4 Drop 17 | . 1 1 7 8 Fire 123 | . 10 37 26 50 Melee . | . . . . . Ram 6 | . . . . 6 Kick . | . . . . . Crush . | . . . . . Escape Stasis . | . . . . . Rewire . | . . . . . Trap . | . . . . . Miscellaneous . | . . . . . Route ------- -11/Scrapyard -10/Materials -9/Materials (discovered 2 exits: *Min x2) -9/Mines (discovered 2 exits: [*Mat] / *Exi) -9/Exiles (discovered 1 exit: [*Min]) History --------- Turn | Location | Event 2 | -11/Scrapyard | Met Revision 17 26 | -11/Scrapyard | Discovered new exit (range 16) 44 | -11/Scrapyard | Entered Materials 172 | -10/Materials | Discovered new exit (range 11) 240 | -10/Materials | Entered another Materials area 240 | -9/Materials | Evolved 2 slots: Utility x2 482 | -9/Materials | Discovered new exit (range 10) 561 | -9/Materials | Build established: Hauler-Mutant 600 | -9/Materials | Identified exit to Mines 634 | -9/Materials | Entered Mines 637 | -9/Mines | Assisted by bots powering up and referring to "LRC-V3" 649 | -9/Mines | Learned Materials terminal intel 654 | -9/Mines | Met a Derelict shopkeep closing up shop 786 | -9/Mines | Discovered new exit (range 10) 813 | -9/Mines | Learned location of Zion (-6) 818 | -9/Mines | Met a Derelict who couldn't figure out how to use a Trap Extractor 913 | -9/Mines | Learned location of Storage (-7) 1183 | -9/Mines | Deemed a non-threat by the Exiles lab entrance 1184 | -9/Mines | Discovered new exit (range 5) 1189 | -9/Mines | Entered Exiles 1211 | -9/Exiles | Discovered new exit (range 14) 1234 | -9/Exiles | Met 8R-AWN 1253 | -9/Exiles | Met EX-HEX 1290 | -9/Exiles | Met EX-BIN 1307 | -9/Exiles | Aligned with FarCom system 1308 | -9/Exiles | Given EX-Vault access code 1336 | -9/Exiles | Opened EX-Vault 1363 | -9/Exiles | Warned to stay clear of 0b10 Research branches 1568 | -9/Exiles | Visited The Gauntlet 1669 | -9/Exiles | Met EX-DEC 2084 | -9/Exiles | Attacked by the Exiles 2199 | -9/Exiles | Core integrity fell below 50% 2246 | -9/Exiles | Core integrity fell below 20% 2283 | -9/Exiles | Destroyed by 8R-AWN with 8R-AWN's Boregun Last Messages --------------- 02262_ Penetrated by HV Slug. 02262_ Ion Engine destroyed. 02262_ HV Slug penetrates Wall. 02266_ Penetrated by HV Slug. 02266_ HV Slug penetrates Wall. 02266_ Penetrated by HV Slug. 02266_ HV Slug penetrates Wall. 02270_ Penetrated by HV Slug. 02270_ HV Slug penetrates Wall. 02270_ Penetrated by HV Slug. 02270_ HV Slug penetrates Earth. 02275_ HV Slug penetrates Assembled Analyzer. 02275_ HV Slug penetrates Wall. 02279_ Penetrated by HV Slug. 02279_ HV Slug penetrates Earth. 02279_ Penetrated by HV Slug. 02279_ Sml. Laser destroyed. 02279_ HV Slug penetrates Earth. 02281_ Slammed into 8R-AWN. 02283_ Penetrated by HV Slug. Map ----- +----------------------------------------------------+ | """#??????????????????????????????????? | | """"??????????????????????????????????? | | """#??????????????????????????????????? | | "X" """"??????????????????????????????????? | | """ #??????????????????????????????????? | | """""""""#??????????????????????????????????? | | ###########??????????????????????????????????? | | #????????????????????????????????????????????? | | #????????????????????????????????????????????? | | ##???????????????????????????????????????????? | | ##???###########????????????????????????????? | | #####"""""""""##???????????????????????????? | | " """ """"##??????????????????????????? | | "" " #??????????????????????????? | | " "#???#??????????????????????? | | a"#??# ???????#####??????????? | | "##? ??????##" #??????????? | | "##; ??????#" #??????????? | | "" " ; ?????##" ##?????????? | | #""" ; #??### ###???????? | | #####"" ;# ??# ######### | | ????##""" ;#?## #""""## | | ?????#" ### | | ????## ## | | ?####"""" #### | | ##""" @] #?#"""""#### | | """ g # "##?#######??#### | | ######??????????????## | | ##????????????????????? | | ##?????????????????????? | | "" " #??????????????????????? | | ##""" " " "" #??????????????????????? | | ######""" """ ##??????????????????????? | | #????###""""## # ##???????????????????????? | | #??????########## #####???????????????????????? | | ??????????????? #????????????????????????????? | | ?????????????###?????????????????????????????? | | ?????????????????????????????????????????????? | | !""!"????????????????????????????????????????????? | | #####????????????????????????????????????????????? | | ?????????????????????????????????????????????????? | | ?????????????????????????????????????????????????? | | ?????????????????????????????????????????????????? | | ?????????????????????????????????????????????????? | | ?????????????????????????????????????????????????? | | ?????????????????????????????????????????????????? | | ?????????????????????????????????????????????????? | | ?????????????????????????????????????????????????? | | ?????????????????????????????????????????????????? | | ?????????????????????????????????????????????????? | +----------------------------------------------------+ Best States ------------- Heat Dissipation 28 Energy Generation 10 Energy Capacity 250 Matter Stores 300 Matter Capacity 300 Sight Range 16 Terrain Scan Density 10 Evasion (%) 40 Item Schematics ----------------- None Robot Schematics ------------------ None Fabricated ------------ Nothing Alien Tech Used ----------------- None Achievements -------------- None Challenges ------------ None Game ------ Seed NeutralizingWarpSteel Manual? 0 Play Time 00:22:32 Cumulative 207.1 hours Start 2020.09.01 @ 23:19:14 End 2020.09.02 @ 21:24:09 Sessions 3 Manual Loads 0 Difficulty Rogue Special Mode None Game No. 115 Rogue 115 Adventurer 0 Explorer 0 Win Type - Total 8 Types 6/0/1/1/0/0/0 Lore% 63 Gallery% 81 Achievement% 64 Wizard Run 0 Options --------- ASCII 0 Keyboard 0 Movement Numpad Keybinds 0 Fullscreen 1 Font 24/Smallcaps Map View 76x50 Tactical HUD 1 Map Filters NONE Filters NONE Steam 1 RUN: 493f24dd-f7e1-4e45-948f-50b0f3622e9c